{"text_format":"1","workbook":"xlsx","n_sheets":3,"sheets":["Prompt","Cedula2B","Enviar"],"not_rendered":{"charts":0,"images":4,"macros":1,"external_links":0,"defined_names":1,"comments":0,"pivot_tables":0},"unopened":[],"bounds":{"document_bytes":16777216,"sheet_cells":100000,"rows_first":2000,"rows_last":500,"rows_between":2000,"halvings":0,"cell_chars":16384,"cell_head_chars":4096},"cells_cut":0,"cells_raw":0,"read":"whole","date_system":"1900"}

{"sheet":"Prompt","index":0,"n_rows":38,"n_cols":4,"rows_kept":38,"cut":false,"hidden":false,"merged":[[0,3,1,5],[3,1,5,8],[8,1,9,8],[37,1,38,8]]}
[null,null,null,"¡ATENCIÓN!"]
[]
[]
[null,"Para hacer uso de las funcionalidades de esta Cédula Electrónica debe habilitar macros"]
[]
[]
[]
[]
[null,"Si utiliza Excel 2000, 2002, 2003 siga el siguiente procedimiento:"]
[]
[]
[]
[]
[]
[]
[]
[]
[]
[]
[]
[]
[]
[]
[]
[]
[]
[]
[]
[]
[]
[]
[]
[]
[]
[]
[]
[]
[null,"Si utiliza Excel 2007 siga el siguiente procedimiento:"]

{"sheet":"Cedula2B","index":1,"n_rows":258,"n_cols":17,"rows_kept":258,"cut":false,"hidden":true,"merged":[[46,2,48,6],[74,4,75,7],[74,9,75,9],[74,10,75,10],[74,11,74,12],[75,11,75,12],[69,7,69,9],[46,7,47,8],[46,9,46,16],[47,9,47,10],[47,11,47,12],[47,13,47,14],[47,15,47,16],[81,5,81,8],[77,11,77,12],[78,11,78,12],[79,11,79,12],[80,11,80,12],[81,11,81,12],[76,11,76,12],[1,5,1,11],[27,13,27,14],[27,9,27,10],[37,11,37,12],[36,7,36,14],[3,5,3,11],[70,13,70,14],[12,12,12,13],[4,5,4,12],[12,5,12,6],[37,9,37,10],[70,10,70,12],[69,2,69,6],[70,2,70,6],[70,7,70,9],[36,5,37,6],[37,7,37,8],[14,5,14,13],[27,11,27,12],[19,2,19,12],[26,2,28,4],[0,13,0,14],[26,5,27,6],[66,2,66,14],[68,10,68,12],[69,10,69,12],[68,13,68,14],[69,13,69,14],[68,7,68,9],[2,5,2,11],[26,7,26,14],[37,13,37,14],[27,7,27,8],[1,13,3,14],[36,2,38,4],[16,5,16,11],[43,3,43,4]]}
[null,null,null,null,null,null,null,null,null,null,null,null,null,"CÉDULA"]
[null,null,null,null,null,"CENSO EDUCATIVO 2022",null,null,null,null,null,null,null,"2B"]
[null,null,null,null,null,"Educación Básica Regular"]
[null,null,null,null,null,"Inicial No Escolarizada"]
[null,null,"Versión : ",1]
[null,null,"INSTRUCCIONES DEL FORMATO ELECTRÓNICO "]
[]
[]
[]
[null,null,"IDENTIFICACIÓN DEL SERVICIO EDUCATIVO"]
[]
[]
[null,null,"1.  CÓDIGO MODULAR :",null,null,null,null,null,null,null,null,"2. DNI - PROFESOR (A) COORDINADOR (A) :  "]
[]
[null,null,"3.  NOMBRE DEL PRONOEI :"]
[]
[null,null,"4. DISTRITO :"]
[]
[]
[null,null,"TIPO DE PROGRAMA - Atención No Escolarizada de Educación Inicial"]
[null,null,"Programas dirigidos a niños entre 3 y 5 años de edad",null,null,null,null,null,"CICLO II - Entorno Familiar",null,null,null,"CICLO II - Entorno Comunitario"]
[]
[]
[null,null,"100. RESULTADO DEL EJERCICIO EDUCATIVO\nSólo para alumnos de 3 a más años de edad."]
[null,null,"Complete y remita esta sección entre diciembre del año 2022 y enero del año 2023."]
[null,null,"101 - RESULTADO DEL EJERCICIO EDUCATIVO A DICIEMBRE 2022, POR EDAD Y SEXO."]
[null,null,"SITUACIÓN",null,null,"TOTAL",null,"EDAD Y SEXO"]
[null,null,null,null,null,null,null,3,null,4,null,5,null,"6 y más"]
[null,null,null,null,null,"H","M","H","M","H","M","H","M","H","M"]
["00",null,"TOTAL MATRICULA",null,null,{"$f":"SUM(F31:F35)","v":0},0,0,0,0,0,{"$f":"SUM(L31:L35)","v":0},{"$f":"SUM(M31:M35)","v":0},{"$f":"SUM(N31:N35)","v":0},{"$f":"SUM(O31:O35)","v":0}]
["01",null,"Promovidos",null,null,{"$f":"SUM(H31,J31,L31,N31)","v":0},0]
["02",null,"Promoción guiada",null,null,{"$f":"SUM(H32,J32,L32,N32)","v":0},{"$f":"SUM(I32,K32,M32,O32)","v":0}]
["03",null,"Trasladados a otro P.E. / I.E.",null,null,0,0]
["04",null,"Retirados",null,null,0,0]
["05",null,"Fallecidos",null,null,0,0]
[null,null,"102 - RETIRADOS POR EDAD Y SEXO, SEGÚN MOTIVO"]
[null,null,"MOTIVO",null,null,"TOTAL",null,"EDAD Y SEXO"]
[null,null,null,null,null,null,null,3,null,4,null,5,null,"6 y más"]
[null,null,null,null,null,"H","M","H","M","H","M","H","M","H","M"]
["00",null,"TOTAL RETIRADOS",null,null,{"$f":"SUM(F41:F44)","v":0},0,0,0,0,0,{"$f":"SUM(L41:L44)","v":0},{"$f":"SUM(M41:M44)","v":0},{"$f":"SUM(N41:N44)","v":0},{"$f":"SUM(O41:O44)","v":0}]
["01",null,"Situación económica",null,null,{"$f":"SUM(H41,J41,L41,N41)","v":0},0]
["02",null,"Violencia",null,null,0,0]
["03",null,"Enfermedad",null,null,0,0]
["04",null,"Otros",null,null,0,0]
[null,null,"Nota.- Los totales de esta tabla deben ser iguales a los reportados en el rubro \"Retirados\" de la tabla 101, según edad que corresponda."]
[null,null,"103. MATRÍCULA TOTAL POR EDAD Y SEXO, SEGÚN TIPO DE DISCAPACIDAD U OTRA CONDICIÓN"]
[null,null,"TIPO DE DISCAPACIDAD U OTRA CONDICIÓN",null,null,null,null,"TOTAL",null,"EDAD Y SEXO"]
[null,null,null,null,null,null,null,null,null,3,null,4,null,5,null,"6 y más"]
[null,null,null,null,null,null,null,"H","M","H","M","H","M","H","M","H","M"]
["00",null,"TOTAL",null,null,null,null,{"$f":"SUM(H51:H64)","v":0},0,0,0,0,0,0,0,0,0]
["01",null,"Discapacidad Intelectual-Leve",null,null,null,null,{"$f":"J51+L51+N51+P51","v":0},{"$f":"K51+M51+O51+Q51","v":0}]
["02",null,"Discapacidad Intelectual-Moderada",null,null,null,null,{"$f":"J52+L52+N52+P52","v":0},0]
["03",null,"Discapacidad Intelectual-Severa",null,null,null,null,0,0]
["04",null,"Discapacidad Auditiva-Hipoacusia",null,null,null,null,0,0]
["05",null,"Discapacidad Auditiva-Sordera",null,null,null,null,0,0]
["06",null,"Discapacidad Visual-Baja visión",null,null,null,null,0,0]
["07",null,"Discapacidad Visual-Ceguera",null,null,null,null,0,0]
["08",null,"Discapacidad Física o Motora",null,null,null,null,0,0]
["09",null,"Trastorno del espectro Autista (TEA)",null,null,null,null,0,0]
["10",null,"Sordoceguera",null,null,null,null,0,0]
["11",null,"Multidiscapacidad",null,null,null,null,0,0]
["12",null,"Talento y Superdotación (altas capacidades)",null,null,null,null,0,0]
["13",null,"Otra discapacidad u otra condición",null,null,null,null,0,0]
["14",null,"Ninguna (No tiene discapacidad u otra condición)",null,null,null,null,{"$f":"J64+L64+N64+P64","v":0},{"$f":"K64+M64+O64+Q64","v":0}]
[null,null,"Nota 2: Los totales de esta tabla deben ser iguales a los de la tabla 101 por edad y sexo."]
[]
[null,null,"DATOS DEL RESPONSABLE DEL LLENADO DE LA CÉDULA"]
[]
[null,null,null,"NOMBRES Y APELLIDO",null,null,null,"CARGO",null,null," CORREO ELECTRÓNICO",null,null,"TELÉFONO"]
["1"]
["2"]
[]
[null,null,"104. DURANTE EL AÑO 2021 ¿SE REALIZARÓN TALLERES DIRIGIDOS A LOS PADRES DE FAMILIA O APODERADOS EN EL PRONOEI?"]
[]
[null,null,null,null,"Talleres de …",null,null,null,null," Si","No","Cantidad"]
[null,null,null,null,null,null,null,null,{"$f":"COUNTIF(J77:K82,\"X\")","v":0},null,null,"de Talleres"]
["01",null,null,null,"1. Aprendizajes"]
["02",null,null,null,"2. Pauta de crianza"]
["03",null,null,null,"3. Violencia"]
["04",null,null,null,"4. Inclusión"]
["05",null,null,null,"5. Alimentación y hábitos de higiene"]
["06",null,null,null,"6. Otro"]
[]
[]
[]
[]
["PROF.COORDINADOR(A)"]
["PROMOTOR(A)-PEC"]
["OTRO"]
[]
[]
[]
[]
[]
[]
[]
[]
[]
[]
[]
[]
[]
[]
[]
[]
[]
[]
[]
[]
[]
[]
[]
[]
[]
[]
[]
[]
[]
[]
[]
[]
[]
[]
[]
[]
[]
[]
[]
[]
[]
[]
[]
[]
[]
[]
[]
[]
[]
[]
[]
[]
[]
[]
[]
[]
[]
[]
[]
[]
[]
[]
[]
[]
[]
[]
[]
[]
[]
[]
[]
[]
[]
[]
[]
[]
[]
[]
[]
[]
[]
[]
[]
[]
[]
[]
[]
[]
[]
[]
[]
[]
[]
[]
[]
[]
[]
[]
[]
[]
[]
[]
[]
[]
[]
[]
[]
[]
[]
[]
[]
[]
[]
[]
[]
[]
[]
[]
[]
[]
[]
[]
[]
[]
[]
[]
[]
[]
[]
[]
[]
[]
[]
[]
[]
[]
[]
[]
[]
[]
[]
[]
[]
[]
[]
[]
[]
[]
[]
[]
[]
[]
[]
[]
[]
[]
[]
[]
[]
[]
[]
[]
[]
[]
[]
[]
[]
[]
[null,null,null,null,null,null,null,null,null,null,null,null,"096 SIMON BOLIVAR"]

{"sheet":"Enviar","index":2,"n_rows":9,"n_cols":3,"rows_kept":9,"cut":false,"hidden":true,"merged":[[0,0,0,3],[1,0,1,3]]}
["CENSO ESCOLAR 2022"]
["RESULTADO DEL EJERCICIO EDUCATIVO"]
[]
[]
[null,"Paso 1:","Realice el ENVÍO con su clave EOL."]
[]
[null,"Paso 2:","Una vez realizado el ENVÍO,  Revise su constancia de envio."]
[]
[null,"  ADVERTENCIA","Asegúrese de registrar toda la información del nivel informante"]